fUSD/lending_fUSD_20250407
["ID","MTS","AMOUNT","RATE_DAILY","PERIOD"]
[357343826,1744009374591,-500.0,0.00048799,120]
[357343827,1744009374626,-500.0,0.00048799,120]
[357343828,1744009374662,-500.0,0.00048799,120]
[357343829,1744009374696,-499999.0,0.000488,120]
[357343830,1744009374737,-158.86667731,0.00049315,120]
[357343831,1744009374779,-589.99693835,0.00049315,120]
[357343832,1744009374820,-500.0,0.00049315,120]
[357343833,1744009374861,-500.0,0.00049315,120]
[357343834,1744009374900,-500.0,0.00049315,120]
[357343835,1744009374938,-500.0,0.00049315,120]
[357343836,1744009374982,-500.0,0.00049315,120]
[357343837,1744009375022,-500.0,0.00049315,120]
[357343838,1744009375063,-500.0,0.00049315,120]
[357343839,1744009375103,-500.0,0.00049315,120]
[357343840,1744009375143,-500.0,0.00049315,120]
[357343841,1744009375186,-500.0,0.00049315,120]
[357343842,1744009375226,-500.0,0.00049315,120]
[357343843,1744009375264,-500.0,0.00049315,120]
[357343844,1744009375303,-500.0,0.00049315,120]
[357343845,1744009375344,-500.0,0.00049315,120]
[357343846,1744009375384,-500.0,0.00049315,120]
[357343847,1744009375425,-500.0,0.00049315,120]
[357343848,1744009375472,-500.0,0.00049315,120]
[357343849,1744009375512,-500.0,0.00049315,120]
[357343850,1744009375551,-500.0,0.00049315,120]
[357343851,1744009375589,-500.0,0.00049315,120]
[357343852,1744009375631,-500.0,0.00049315,120]
[357343853,1744009375669,-500.0,0.00049315,120]
[357343854,1744009375710,-500.0,0.00049315,120]
[357343855,1744009375748,-224.53685493,0.00049315,120]
[357343856,1744009375784,-500.0,0.00049315,120]
[357343857,1744009375825,-500.0,0.00049315,120]
[357343858,1744009375862,-500.0,0.00049315,120]
[357343859,1744009375900,-500.0,0.00049315,120]
[357343860,1744009375936,-500.0,0.00049315,120]
[357343861,1744009375975,-500.0,0.00049315,120]
[357343862,1744009376012,-500.0,0.00049315,120]
[357343863,1744009376222,-500.0,0.00049315,120]
[357343864,1744009376265,-500.0,0.00049315,120]
[357343865,1744009376309,-500.0,0.00049315,120]
[357343866,1744009376372,-500.0,0.00049315,120]
[357343867,1744009376418,-500.0,0.00049315,120]
[357343868,1744009376464,-500.0,0.00049315,120]
[357343869,1744009376508,-500.0,0.00049315,120]
[357343870,1744009376551,-500.0,0.00049315,120]
[357343871,1744009376595,-500.0,0.00049315,120]
[357343872,1744009376637,-500.0,0.00049315,120]
[357343873,1744009376679,-500.0,0.00049315,120]
[357343874,1744009376722,-500.0,0.00049315,120]
[357343875,1744009376764,-500.0,0.00049315,120]
[357343876,1744009376807,-500.0,0.00049315,120]
[357343877,1744009376851,-500.0,0.00049315,120]
[357343878,1744009376894,-500.0,0.00049315,120]
[357343879,1744009376935,-500.0,0.00049315,120]
[357343880,1744009376981,-500.0,0.00049315,120]
[357343881,1744009377024,-500.0,0.00049315,120]
[357343882,1744009377066,-500.0,0.00049315,120]
[357343883,1744009377107,-500.0,0.00049315,120]
[357343884,1744009377149,-500.0,0.00049315,120]
[357343885,1744009377190,-500.0,0.00049315,120]
[357343886,1744009377237,-558.50373839,0.00049315,120]
[357343887,1744009377279,-500.0,0.00049315,120]
[357343888,1744009377331,-500.0,0.00049315,120]
[357343889,1744009377374,-500.0,0.00049315,120]
[357343890,1744009377416,-500.0,0.00049315,120]
[357343891,1744009377455,-1000.0,0.00049833,120]
[357343892,1744009377496,-174.0,0.00049839,120]
[357343893,1744009384872,600.0,0.00048799,120]
[357343894,1744009390597,500.0,0.00049315,120]
[357343895,1744009390645,500.0,0.00049315,120]
[357343896,1744009390738,500.0,0.00049315,120]
[357343897,1744009390798,500.0,0.00049315,120]
[357343898,1744009390850,500.0,0.00049315,120]
[357343899,1744009390902,500.0,0.00049315,120]
[357343900,1744009390968,500.0,0.00049315,120]
[357343901,1744009391019,500.0,0.00049315,120]
[357343902,1744009391079,500.0,0.00049315,120]
[357343903,1744009391147,500.0,0.00049315,120]
[357343904,1744009391220,500.0,0.00049315,120]
[357343905,1744009391367,500.0,0.00049315,120]
[357343906,1744009391431,500.0,0.00049315,120]
[357343907,1744009391499,500.0,0.00049315,120]
[357343908,1744009391575,500.0,0.00049315,120]
[357343909,1744009391651,500.0,0.00049315,120]
[357343911,1744009401974,150.0,0.00049315,120]
[357343912,1744009406601,786.712123,0.00043624,120]
[357343913,1744009410309,786.712123,0.00038,120]
[357343914,1744009413708,786.712123,0.0004,120]
[357343915,1744009414915,500.0,0.00048799,120]
[357343916,1744009414962,500.0,0.00048799,120]
[357343917,1744009415208,500.0,0.00048799,120]
[357343918,1744009415392,500.0,0.00048799,120]
[357343919,1744009415472,500.0,0.00048799,120]
[357343920,1744009415586,568.1374071,0.00048799,120]
[357343921,1744009417093,1573.42424601,0.00043,120]
[357343922,1744009421009,1966.78030751,0.00046,120]
[357343923,1744009430741,-718.5601235,0.00026849,2]
[357343924,1744009430778,-153.87,0.00026849,2]
[357343925,1744009430814,-350.0,0.00029534,12]
[357343926,1744009430850,-350.0,0.0003342,12]
[357343927,1744009430887,-350.0,0.00037691,12]
[357343928,1744009430922,-509.946257,0.0004,10]
[357343929,1744009430957,-153.87,0.00040616,2]
[357343930,1744009430995,-174.0,0.00041,14]
[357343931,1744009431028,-1237.937103,0.0004179,2]
[357343932,1744009431063,-160.34070726,0.00041975,2]
[357343933,1744009431097,-250.0,0.00042075,2]
[357343934,1744009431130,-2272.23068372,0.0004361,2]
[357343935,1744009431162,-280.8939,0.00043888,7]
[357343936,1744009431195,-1000.0,0.00044296,2]
[357343937,1744009431228,-250.0,0.000451,2]
[357343938,1744009431264,-2314.11,0.00045253,2]
[357343939,1744009431302,-1646.97,0.00045999,2]
[357343940,1744009431339,-179.79,0.00046149,2]
[357343941,1744009431374,-160.85,0.0004658,2]
[357343942,1744009431409,-214.46,0.00047055,2]
[357343943,1744009431444,-436.36,0.00047183,2]
[357343944,1744009431479,-1966.78030752,0.00048,120]
[357343945,1744009431519,-436.36,0.00049542,2]
[357343947,1744009438095,174.0,0.00041,14]
[357343948,1744009442461,662.37459874,0.00043624,120]
[357343949,1744009443391,7024.0,0.00026849,2]
[357343950,1744009445784,662.37459874,0.00038,120]
[357343951,1744009446465,-250.0,0.00051,52]
[357343952,1744009446507,-161.44,0.00051762,120]
[357343953,1744009446543,-278.61,0.000518,2]
[357343954,1744009446579,-672.75137276,0.000519,8]
[357343955,1744009446612,-436.36,0.00051901,2]
[357343956,1744009446646,-5282.82,0.00052,45]
[357343957,1744009446680,-381.12,0.00052,2]
[357343958,1744009446715,-150.99,0.00052,30]
[357343959,1744009446755,-299.99,0.00052,120]
[357343960,1744009446790,-499.51,0.00052,2]
[357343961,1744009446826,-500.0,0.00052,53]
[357343962,1744009446859,-931.87,0.00053,30]
[357343963,1744009446902,-177.433,0.00053,98]
[357343964,1744009446938,-1852.892,0.00053,98]
[357343965,1744009446973,-700.0,0.00053698,28]
[357343966,1744009447016,-700.0,0.00053698,28]
[357343967,1744009447054,-700.0,0.00053698,28]
[357343968,1744009447092,-700.0,0.00053698,28]
[357343969,1744009447127,-700.0,0.00053698,28]
[357343970,1744009447163,-700.0,0.00053698,38]
[357343971,1744009447197,-436.36,0.00054261,2]
[357343972,1744009447230,-153.87,0.00054384,120]
[357343973,1744009447266,-539.0,0.00054384,30]
[357343974,1744009447301,-160.85,0.0005446,120]
[357343975,1744009447339,-150.0,0.00054794,120]
[357343976,1744009447484,527.15386024,0.00054581,120]
[357343977,1744009449148,662.37459874,0.0004,120]
[357343978,1744009452508,1324.74919747,0.00043,120]
[357343979,1744009455888,1655.93649684,0.00046,120]
[357343980,1744009458639,158.03,0.00042659,2]
[357343981,1744009459645,1655.93649682,0.00048,120]
[357343982,1744009478971,3125.6283867,0.00043624,30]
[357343983,1744009487851,175.0,0.00054384,120]
[357343984,1744009488360,150.0,0.00054284,120]
[357343985,1744009488581,150.0,0.00054384,120]
[357343986,1744009494623,997.48,0.00052,120]
[357343987,1744009495013,1012.7649,0.00046475,120]
[357343988,1744009495060,1511.257771,0.000519,120]
[357343989,1744009503346,250.0,0.00046,60]
[357343990,1744009503433,185.0,0.0005,120]
[357343991,1744009503505,1052.61305022,0.00050862,30]
[357343992,1744009503777,1623.38292718,0.00054794,15]
[357343993,1744009504559,150.0,0.00054794,15]
[357343994,1744009505481,224.9719,0.0004352,2]
[357343995,1744009507724,200.0,0.00054794,15]
[357343996,1744009534547,165.0,0.00054794,15]
[357343997,1744009574037,151.0,0.00045,120]
[357343998,1744009584510,300.0,0.00054581,120]
[357343999,1744009585238,-1116.86128588,0.00055369,120]
[357344000,1744009585302,-11580.0,0.0005537,120]
[357344001,1744009585377,-1000.0,0.0005537,120]
[357344002,1744009585451,-350.0,0.00057294,120]
[357344003,1744009585524,-179.79,0.00057382,120]
[357344004,1744009585596,-500.0,0.00058082,120]
[357344005,1744009585676,-700.0,0.00059177,40]
[357344006,1744009585745,-2447.59579148,0.00059962,120]
[357344007,1744009585816,-150.0,0.0006,120]
[357344008,1744009585886,-150.0,0.0006,120]
[357344009,1744009585958,-12500.0,0.00060027,31]
[357344010,1744009586025,-12500.0,0.00060036,31]
[357344011,1744009586094,-12500.0,0.00060045,31]
[357344012,1744009586170,-12500.0,0.00060054,31]
[357344013,1744009586479,-12500.0,0.00060062,31]
[357344014,1744009586545,-12500.0,0.00060071,31]
[357344015,1744009586615,-1276.0442564,0.0006008,31]
[357344016,1744009586684,-12500.0,0.0006008,31]
[357344017,1744009586752,-610.0,0.00060751,120]
[357344018,1744009586820,-1000.0,0.00060907,120]
[357344019,1744009586886,-160.85,0.0006234,120]
[357344020,1744009586952,-250.0,0.00063099,120]
[357344021,1744009587023,-150.0,0.00063751,30]
[357344022,1744009587092,-1852.42,0.00064538,120]
[357344023,1744009587161,-700.0,0.00064657,42]
[357344024,1744009587226,-1000.0,0.00066444,120]
[357344025,1744009587288,-7221.562106,0.00067,120]
[357344026,1744009587358,-2447.59579146,0.00067231,120]
[357344027,1744009587431,-1852.892,0.0006725,120]
[357344028,1744009587514,-153.87,0.00068151,120]
[357344029,1744009587584,-179.79,0.00068615,120]
[357344030,1744009587654,-500.0,0.00069669,120]
[357344031,1744009587727,-500.0,0.00069669,120]
[357344032,1744009587795,-500.0,0.00069669,120]
[357344033,1744009587865,-500.0,0.00069669,120]
[357344034,1744009587932,-500.0,0.00069669,120]
[357344035,1744009587995,-630.42129125,0.00069669,120]
[357344036,1744009588061,-500.0,0.00069669,120]
[357344037,1744009588129,-500.0,0.00069669,120]
[357344038,1744009588192,-500.0,0.00069669,120]
[357344039,1744009588258,-500.0,0.00069669,120]
[357344040,1744009588326,-500.0,0.00069669,120]
[357344041,1744009588392,-291.94164525,0.00069669,120]
[357344042,1744009588467,-500.0,0.00069669,120]
[357344043,1744009588536,-500.0,0.00069669,120]
[357344044,1744009588614,-500.0,0.00069669,120]
[357344045,1744009588686,-500.0,0.00069669,120]
[357344046,1744009588757,-500.0,0.00069669,120]
[357344047,1744009588831,-500.0,0.00069669,120]
[357344048,1744009588897,-500.0,0.00069669,120]
[357344049,1744009588969,-500.0,0.00069669,120]
[357344050,1744009589035,-500.0,0.00069669,120]
[357344051,1744009589110,-500.0,0.00069669,120]
[357344052,1744009589178,-500.0,0.00069669,120]
[357344053,1744009589248,-500.0,0.00069669,120]
[357344054,1744009589310,-2000.0,0.0007,120]
[357344055,1744009589375,-700.0,0.00070136,120]
[357344056,1744009589439,-160.85,0.0007022,120]
[357344057,1744009589508,-1265.94948966,0.00072,120]
[357344058,1744009589572,-2000.0,0.00073,120]
[357344059,1744009589639,-2000.0,0.00074,120]
[357344060,1744009589703,-2447.59579146,0.000745,120]
[357344061,1744009589771,-2000.0,0.00075,120]
[357344062,1744009589839,-666.73864787,0.00075616,120]
[357344063,1744009589912,-5000.0,0.000794,120]
[357344064,1744009589974,-501.58752862,0.00079748,80]
[357344065,1744009590044,-179.79,0.00079848,120]
[357344066,1744009590119,-47221.3583985,0.0007999,120]
[357344067,1744009590191,-3000.0,0.0008,120]
[357344068,1744009590256,-177.433,0.000815,120]
[357344069,1744009590326,-1852.893,0.000815,120]
[357344070,1744009590390,-234.0,0.000815,120]
[357344071,1744009590457,-153.87,0.00081918,120]
[357344072,1744009590775,238.12,0.00069,60]
[357344073,1744009600479,151.0,0.00044621,2]
[357344074,1744009612116,151.0,0.0004351,2]
[357344075,1744009612678,700.0,0.0005383,28]
[357344076,1744009613503,700.0,0.0005383,28]
[357344077,1744009613823,700.0,0.0005383,28]
[357344078,1744009613882,700.0,0.0005383,28]
[357344079,1744009614161,700.0,0.0005383,28]
[357344080,1744009614445,700.0,0.0005383,38]
[357344081,1744009624434,151.0,0.00043231,2]
[357344082,1744009627935,7434.89443737,0.00054918,2]
[357344083,1744009629132,-200.0,0.00055342,15]
[357344084,1744009629154,-227.34957724,0.0005537,15]
[357344085,1744009636525,151.0,0.00044072,2]
[357344086,1744009642106,-515.41425679,0.0005537,15]
[357344087,1744009644381,-24.23616597,0.0005537,15]
[357344088,1744009644411,-160.34070726,0.0005652,2]
[357344089,1744009644437,-436.36,0.0005662,2]
[357344090,1744009644459,-5066.8175,0.00058055,20]
[357344091,1744009644481,-273.6,0.00058878,11]
[357344092,1744009644503,-243.9951798,0.0006,120]
[357344093,1744009644525,-150.0,0.0006,120]
[357344094,1744009644546,-160.34070726,0.00060651,2]
[357344095,1744009644568,-200.0,0.0006198,7]
[357344096,1744009644590,-1428.37412913,0.00062846,2]
[357344097,1744009648120,151.0,0.00044342,2]
[357344098,1744009660187,151.0,0.0004508,2]
[357344099,1744009671320,1500.0,0.0001986,30]
[357344100,1744009672627,151.0,0.00044748,2]
[357344101,1744009674837,150.0,0.000519,2]
[357344102,1744009684242,151.0,0.00044617,2]
[357344103,1744009687184,302.0,0.00045,120]
[357344104,1744009689763,1575.23,0.000486,45]
[357344105,1744009689853,1575.23,0.000486,45]
[357344106,1744009689915,1575.23,0.000486,45]
[357344107,1744009689969,1575.23,0.000486,45]
[357344108,1744009690029,1575.23,0.000486,45]
[357344109,1744009690097,1575.23,0.000486,45]
[357344110,1744009690140,1575.23,0.000486,45]
[357344111,1744009690204,1575.23,0.000486,45]
[357344112,1744009690282,1575.23,0.000486,45]
[357344113,1744009690332,1575.23,0.000486,45]
[357344114,1744009690395,1575.23,0.000486,45]
[357344115,1744009690479,1575.23,0.000486,45]
[357344116,1744009743315,11253.91,0.00055,120]
[357344118,1744009768904,502.39776807,0.0005,60]
[357344119,1744009802968,300.0,0.00051,120]
[357344120,1744009803366,609.90564894,0.0005,120]
[357344121,1744009803411,233.79,0.0005,120]
[357344122,1744009803456,239.5625409,0.0005,51]
[357344123,1744009803555,300.0,0.00052408,120]
[357344124,1744009803815,-247.19243998,0.000617,120]
[357344125,1744009803841,-326.33,0.000618,7]
[357344126,1744009803869,-427.47756002,0.00062846,2]
[357344127,1744009803980,300.0,0.00053816,120]
[357344134,1744009831866,-366.15095316,0.00055225,120]
[357344135,1744009831876,-938.0363451,0.00062846,2]
[357344136,1744009831973,-5758.0,0.00062846,2]
[357344137,1744009831986,-3753.75,0.00062846,2]
[357344138,1744009832140,2373.1852,0.00043888,7]
[357344139,1744009832887,272.97,0.00049152,30]
[357344140,1744009833759,711.95557,0.00046688,30]
[357344141,1744009834661,711.95557,0.00047088,30]
[357344142,1744009835010,711.95557,0.00046488,30]
[357344143,1744009835354,711.95557,0.00047288,30]
[357344144,1744009835657,711.95557,0.00046288,30]
[357344145,1744009835976,711.95557,0.00047488,30]
[357344146,1744009836293,711.95557,0.00046088,30]
[357344147,1744009836604,711.95557,0.00047688,30]
[357344148,1744009836920,711.95557,0.00045888,30]
[357344149,1744009837221,711.95557,0.00047888,30]
[357344151,1744009837470,-150.0,0.00062846,2]
[357344153,1744009837482,-11594.36196575,0.00062846,2]
[357344155,1744009837491,-358.19460399,0.00062971,120]
[357344157,1744009837501,-1282.56636455,0.00063451,120]
[357344159,1744009837510,-500.0,0.0006359,120]
[357344161,1744009837521,-1615.56219952,0.00063669,120]
[357344164,1744009837533,-745.93,0.00063769,2]
[357344167,1744009837544,-299.99,0.00063769,120]
[357344170,1744009837555,-9999.99,0.00063769,2]
[357344173,1744009837565,-745.66,0.00063769,2]
[357344176,1744009837576,-157.75,0.00064979,2]
[357344179,1744009837586,-1300.0,0.00065068,120]
[357344182,1744009837596,-200.0,0.00065202,2]
[357344185,1744009837606,-1000.0,0.00065215,14]
[357344188,1744009837615,-318.42,0.00065216,2]
[357344191,1744009837625,-1300.0,0.00065342,120]
[357344194,1744009837634,-3621.94,0.00065342,2]
[357344197,1744009837644,-1808.39,0.00065342,60]
[357344199,1744009837653,-744.0,0.00065342,120]
[357344201,1744009837663,-1300.0,0.00065616,120]
[357344203,1744009837672,-150.0,0.00065663,2]
[357344205,1744009837682,-1300.0,0.0006589,120]
[357344207,1744009837692,-1300.0,0.00066164,120]
[357344209,1744009837701,-1300.0,0.00066712,120]
[357344211,1744009837711,-500.0,0.000669,2]
[357344213,1744009837721,-166.63,0.00066987,2]
[357344215,1744009837730,-1300.0,0.0006726,120]
[357344217,1744009837740,-1300.0,0.00067808,120]
[357344219,1744009837749,-1300.0,0.00068356,120]
[357344221,1744009837759,-1300.0,0.00068904,120]
[357344223,1744009837769,-238.12,0.00069,60]
[357344225,1744009837779,-12845.42,0.00069,120]
[357344227,1744009837796,-361.56,0.00069394,30]
[357344229,1744009837807,-1300.0,0.00069452,120]
[357344231,1744009837817,-1545.1601,0.00069552,2]
[357344233,1744009837826,-2161.08,0.0006956,2]
[357344235,1744009837835,-2161.08,0.00069578,2]
[357344237,1744009837845,-2161.08,0.00069597,2]
[357344239,1744009837854,-2161.08,0.00069615,2]
[357344241,1744009837864,-2161.08,0.00069633,2]
[357344243,1744009837873,-2161.08,0.00069652,2]
[357344245,1744009837883,-291.94164525,0.00069669,120]
[357344247,1744009837893,-500.0,0.00069669,120]
[357344249,1744009837902,-500.0,0.00069669,120]
[357344251,1744009837911,-500.0,0.00069669,120]
[357344253,1744009837921,-500.0,0.00069669,120]
[357344255,1744009837930,-500.0,0.00069669,120]
[357344257,1744009837939,-500.0,0.00069669,120]
[357344259,1744009837950,-500.0,0.00069669,120]
[357344261,1744009837960,-500.0,0.00069669,120]
[357344262,1744009837969,-500.0,0.00069669,120]
[357344264,1744009837978,-500.0,0.00069669,120]
[357344266,1744009837987,-500.0,0.00069669,120]
[357344268,1744009837996,-500.0,0.00069669,120]
[357344270,1744009838005,-500.0,0.00069669,120]
[357344272,1744009838015,-500.0,0.00069669,120]
[357344274,1744009838024,-500.0,0.00069669,120]
[357344276,1744009838037,-500.0,0.00069669,120]
[357344278,1744009838047,-500.0,0.00069669,120]
[357344280,1744009838056,-500.0,0.00069669,120]
[357344282,1744009838065,-500.0,0.00069669,120]
[357344284,1744009838074,-500.0,0.00069669,120]
[357344286,1744009838083,-500.0,0.00069669,120]
[357344288,1744009838093,-500.0,0.00069669,120]
[357344290,1744009838102,-500.0,0.00069669,120]
[357344292,1744009838112,-500.0,0.00069669,120]
[357344294,1744009838122,-500.0,0.00069669,120]
[357344296,1744009838131,-367.92455241,0.00069669,120]
[357344301,1744009838172,-132.07544759,0.00069669,120]
[357344303,1744009838181,-500.0,0.00069669,120]
[357344305,1744009838190,-500.0,0.00069669,120]
[357344306,1744009838199,-354.40955242,0.00069669,120]
[357344313,1744009838254,711.95557,0.00045688,30]
[357344318,1744009838296,-145.59044758,0.00069669,120]
[357344319,1744009838306,-500.0,0.00069669,120]
[357344320,1744009838316,-500.0,0.00069669,120]
[357344321,1744009838325,-630.42129125,0.00069669,120]
[357344322,1744009838335,-500.0,0.00069669,120]
[357344323,1744009838345,-500.0,0.00069669,120]
[357344324,1744009838354,-500.0,0.00069669,120]
[357344325,1744009838364,-500.0,0.00069669,120]
[357344326,1744009838375,-500.0,0.00069669,120]
[357344327,1744009838384,-500.0,0.00069669,120]
[357344328,1744009838394,-500.0,0.00069669,120]
[357344330,1744009838404,-500.0,0.00069669,120]
[357344332,1744009838414,-500.0,0.00069669,120]
[357344334,1744009838424,-500.0,0.00069669,120]
[357344336,1744009838433,-500.0,0.00069669,120]
[357344338,1744009838443,-500.0,0.00069669,120]
[357344340,1744009838454,-500.0,0.00069669,120]
[357344342,1744009838464,-500.0,0.00069669,120]
[357344343,1744009838478,-500.0,0.00069669,120]
[357344345,1744009838488,-500.0,0.00069669,120]
[357344346,1744009838499,-500.0,0.00069669,120]
[357344347,1744009838509,-500.0,0.00069669,120]
[357344348,1744009838519,-500.0,0.00069669,120]
[357344349,1744009838528,-500.0,0.00069669,120]
[357344350,1744009838542,-500.0,0.00069669,120]
[357344351,1744009838553,-500.0,0.00069669,120]
[357344352,1744009838564,-500.0,0.00069669,120]
[357344353,1744009838574,-500.0,0.00069669,120]
[357344354,1744009838584,-500.0,0.00069669,120]
[357344355,1744009838594,-2161.08,0.0006967,2]
[357344356,1744009838604,-2161.08,0.00069688,2]
[357344357,1744009838614,-6045.8581,0.00069698,2]
[357344358,1744009838624,-1000.0,0.00069698,30]
[357344359,1744009838633,-2161.08,0.00069706,2]
[357344360,1744009838644,-2161.08,0.00069725,2]
[357344361,1744009838654,-2161.08,0.00069743,2]
[357344362,1744009838663,-2161.08,0.00069761,2]
[357344363,1744009838675,-2161.08,0.0006978,2]
[357344364,1744009838685,-2161.08,0.00069798,2]
[357344365,1744009838694,-2161.08,0.00069816,2]
[357344366,1744009838703,-2161.08,0.00069835,2]
[357344367,1744009838714,-2161.08,0.00069853,2]
[357344368,1744009838724,-2161.08,0.00069871,2]
[357344369,1744009838734,-2161.08,0.0006989,2]
[357344370,1744009838744,-2161.08,0.00069908,2]
[357344371,1744009838753,-301.93716775,0.0006997,90]
[357344372,1744009838763,-1300.0,0.0007,120]
[357344373,1744009838773,-1300.0,0.00070548,120]
[357344374,1744009838785,-965.29205594,0.00071096,120]
[357344375,1744009838795,-266.83,0.00071549,2]
[357344376,1744009838804,-266.83,0.00073813,2]
[357344377,1744009838814,-2500.0,0.000739,2]
[357344378,1744009838824,-1000.0,0.000739,2]
[357344379,1744009838834,-1000.0,0.00074183,120]
[357344380,1744009838844,-18961.83660358,0.00074868,2]
[357344381,1744009838854,-266.83,0.00076077,2]
[357344382,1744009838863,-323.75,0.00077073,120]
[357344383,1744009838874,-271.94,0.000772,14]
[357344384,1744009838884,-220.97,0.00077447,2]
[357344385,1744009838894,-150.0,0.00077685,30]
[357344386,1744009838903,-266.22714581,0.00077685,30]
[357344387,1744009838914,-150.0,0.00077685,30]
[357344388,1744009838924,-366.10037721,0.00077685,30]
[357344389,1744009838933,-559.02951125,0.00077685,30]
[357344390,1744009838943,-166.63,0.00078043,2]
[357344391,1744009838953,-266.83,0.0007834,2]
[357344392,1744009838963,-11972.93,0.00078612,2]
[357344393,1744009838973,-1500.0,0.00079739,120]
[357344394,1744009838983,-200.0,0.0008,120]
[357344395,1744009838993,-551.15797005,0.00080379,120]
[357344396,1744009839002,-266.83,0.00080604,2]
[357344397,1744009839012,-215.0,0.000815,120]
[357344398,1744009839023,-323.75,0.00081551,120]
[357344399,1744009839036,-200.0,0.00081918,30]
[357344400,1744009839046,-500.0,0.00082024,120]
[357344401,1744009839056,-200.0,0.00082468,120]
[357344402,1744009839066,-266.83,0.00082868,2]
[357344403,1744009839075,-625.31369011,0.00083675,60]
[357344404,1744009839085,-500.0,0.00083675,15]
[357344405,1744009839094,-216.00000008,0.00085,120]
[357344406,1744009839104,-266.83,0.00085132,2]
[357344407,1744009839114,-323.75,0.00086029,120]
[357344408,1744009839123,-179.19,0.0008619,30]
[357344409,1744009839133,-12845.42,0.000862,120]
[357344410,1744009839143,-266.83,0.00087396,2]
[357344411,1744009839153,-266.83,0.0008966,2]
[357344412,1744009839163,-346.42135298,0.000899,120]
[357344413,1744009839173,-3000.0,0.0009,120]
[357344414,1744009839183,-1430.8337968,0.0009,120]
[357344415,1744009839194,-323.75,0.00090507,120]
[357344416,1744009839204,-179.79,0.0009108,120]
[357344417,1744009839213,-266.83,0.00091924,2]
[357344418,1744009839223,-210.0,0.0009197,120]
[357344419,1744009839232,-210.0,0.0009198,120]
[357344420,1744009839242,-210.0,0.0009199,120]
[357344421,1744009839251,-1902.15392969,0.00093547,15]
[357344422,1744009839260,-6497.3652,0.00093547,120]
[357344423,1744009839270,-11997.16,0.00093647,7]
[357344424,1744009839279,-266.83,0.00094188,2]
[357344425,1744009839293,-635.65,0.00094943,120]
[357344426,1744009839302,-300.0,0.0009497,120]
[357344427,1744009839312,-323.75,0.00094986,120]
[357344428,1744009839322,-153.87,0.00095685,120]
[357344429,1744009839331,-1852.892,0.0009575,120]
[357344430,1744009839341,-266.83,0.00096452,2]
[357344431,1744009839350,-179.19,0.00096839,30]
[357344432,1744009839360,-30000.0,0.00096849,14]
[357344433,1744009839370,-384.52467695,0.0009686,120]
[357344434,1744009839380,-210.0,0.0009696,120]
[357344435,1744009839390,-210.0,0.0009697,120]
[357344436,1744009839400,-210.0,0.0009698,120]
[357344437,1744009839410,-5354.23322217,0.000975,120]